Cogmind - Beta 12 @@@ ROGUE MODE // 2023.08.04 @ 11:52:26 Player: Darch Result: Destroyed by G-47 Trooper with Particle Gun Performance ------------- Evolutions (2) 1000 Regions Visited (4) 800 Robots Destroyed (65) 325 Value Destroyed (1735) 1735 Prototype IDs (0) 0 Alien Tech Used (0) 0 Bonus (64) 64 TOTAL SCORE: 3924 Bonus ------- High Alert Combat Kills 64 Cogmind --------- Core Integrity 0/550 Matter 82/300 Energy 100/100 System Corruption 0% Temperature Cool (18) Movement Walking (200) Ox1 Location -8/Materials Parts ------- > --- POWER (1) -------- (None) > --- PROPULSION (3) --- Titanium Leg > --- UTILITY (4) ------ Coolant Injector Large Storage Unit > --- WEAPON (3) ------- Heavy Missile Launcher > --- INVENTORY (15) --- Ion Engine Coolant Injector Coolant Injector System Shield Peak State ------------ > --- POWER ------------ Improved Ion Engine > --- PROPULSION ------- Improved Aluminum Leg Titanium Leg Titanium Leg > --- UTILITY ---------- Coolant Injector Coolant Injector Large Storage Unit Medium Matter Pod > --- WEAPON ----------- Gauss Cannon Gauss Cannon Heavy Missile Launcher > --- INVENTORY -------- Ion Engine Light Ion Engine Light Nuclear Core Aluminum Leg Titanium Leg Coolant Injector Coolant Injector Shock Rifle Gauss Cannon Gauss Cannon Heavy Missile Launcher Heavy Missile Launcher Heavy Missile Launcher [Rating: 36] Favorites ----------- Power Light Ion Engine Engine Light Ion Engine Power Core Light Nuclear Core Propulsion Titanium Leg Leg Titanium Leg Utility Large Storage Unit Device Coolant Injector Storage Large Storage Unit Processor Improved Targeting Computer Protection Power Shielding Weapon Autogun Energy Gun Shock Rifle Energy Cannon Heavy Particle Cannon Ballistic Gun Autogun Ballistic Cannon Gauss Cannon Launcher Heavy Missile Launcher Impact Weapon Flail Build | -11 -10 -9 -9 -8 ------- Run | Jun Mat Mat Min Mat Slots Evolved 4 | . . 2 . 2 Power . | . . . . . Propulsion 1 | . . 1 . . Utility 2 | . . 1 . 1 Weapon 1 | . . . . 1 Parts Attached 55 | 6 7 21 7 14 Power 10 | 2 1 3 2 2 Engine 9 | 2 1 3 2 1 Core 1 | . . . . 1 Reactor . | . . . . . Propulsion 14 | 2 2 7 1 2 Treads . | . . . . . Leg 14 | 2 2 7 1 2 Wheel . | . . . . . Hover . | . . . . . Flight . | . . . . . Utility 9 | 1 2 3 1 2 Device 4 | 1 . 1 . 2 Storage 3 | . 2 . 1 . Processor 1 | . . 1 . . Hackware . | . . . . . Protection 1 | . . 1 . . Artifact . | . . . . . Weapon 22 | 1 2 8 3 8 Energy Gun 1 | . . . . 1 Energy Cannon 1 | . . . . 1 Ballistic Gun 12 | 1 2 6 3 . Ballistic Cannon 2 | . . . . 2 Launcher 5 | . . 1 . 4 Special Weapon . | . . . . . Impact Weapon 1 | . . 1 . . Slashing Weapon . | . . . . . Piercing Weapon . | . . . . . Special Melee Weapon . | . . . . . Unidentified Prototypes . | . . . . . Parts Lost 21 | . . 3 5 13 Power 4 | . . 1 . 3 Propulsion 6 | . . 1 1 4 Utility 5 | . . 1 2 2 Weapon 6 | . . . 2 4 Highest Loss Streak 12 | . . 2 3 12 To Critical Strikes . | . . . . . Average Slot Usage (%) 89 | . 95 93 85 84 Engine 9 | . 14 7 11 6 Leg 29 | . 28 32 31 22 Device 6 | . 14 2 . 16 Storage 14 | . 13 11 18 16 Processor 4 | . . 10 1 . Protection 2 | . . 6 . . Ballistic Gun 17 | . 24 20 21 1 Ballistic Cannon 1 | . . . . 7 Launcher 2 | . . 1 . 7 Naked Turns . | . . . . . Heaviest Build 52 | 6 27 35 35 52 Greatest Support 51 | 20 20 51 51 47 Greatest Overweight (x) 11 | . 1 8 . 11 Average Overweight (x) . | . . . . . Largest Inventory Capacity 15 | 5 15 15 15 15 Average Capacity 14 | 5 13 15 15 15 Most Carried 13 | 1 7 12 12 13 Average Carried 7 | . 4 8 9 9 Final Capacity 15 | 5 15 15 15 15 Final Carried 12 | 1 6 12 9 4 Class Distribution -------------------- 83% | Mutant 13% | Gunner 3% | Scavenger-Mutant Dominant Class ---------------- Mutant | -10/Materials Mutant | -9/Materials Mutant | -9/Mines Gunner | -8/Materials Resources | -11 -10 -9 -9 -8 ----------- Run | Jun Mat Mat Min Mat Matter Collected 1584 | 285 207 584 170 338 Remotely . | . . . . . Salvage Created 1889 | 60 207 811 275 536 Parts 124 | 5 15 51 22 31 Haulers Intercepted 2 | . . 1 . 1 Recyclers Shooed 1 | . . 1 . . Parts Field Recycled . | . . . . . Retrieved Matter . | . . . . . Parts Self-Destructed . | . . . . . Prevented . | . . . . . Kills | -11 -10 -9 -9 -8 ------- Run | Jun Mat Mat Min Mat Combat Hostiles Destroyed 53 | 1 7 21 11 13 Guns 35 | 1 7 20 7 . Cannons 7 | . . . . 7 AOE 11 | . . 1 4 6 Classes Destroyed 11 | 2 1 4 1 3 Builder 4 | . . . . 4 Tunneler 1 | 1 . . . . Hauler 2 | . . 1 . 1 Recycler 2 | . . 1 . 1 Operator 1 | . . . . 1 Watcher 3 | . . 1 . 2 Swarmer 20 | . 3 11 3 3 Grunt 19 | 1 4 3 5 6 Brawler 2 | . . . . 2 Sentry 11 | . . 7 2 2 Assembled 1 | . . . 1 . Best Kill Streak 8 | 2 3 5 3 8 Combat Bots Only 6 | 1 3 5 3 6 Max Kills in Single Turn 4 | 1 2 2 2 4 Gunslinging 1 | . 1 1 1 . Exploded 2 | . . 1 2 1 Melee . | . . . . . Uniques/NPCs Destroyed . | . . . . . Combat | -11 -10 -9 -9 -8 -------- Run | Jun Mat Mat Min Mat Damage Taken 3701 | 149 200 877 700 1775 Core 856 | 22 75 152 54 553 Absorbed by Shields . | . . . . . Redirected to Shielding 9 | . . 4 5 . Core Remaining (%) 66 | 91 61 . 48 . Volleys Fired 160 | 18 27 68 25 22 Largest 3 | 1 2 2 2 3 Hottest 164 | 20 40 56 56 164 Shots Fired 292 | 18 43 125 50 56 Gun 239 | 18 43 124 43 11 Cannon 29 | . . . . 29 Launcher 24 | . . 1 7 16 Special . | . . . . . Kinetic 252 | 18 43 124 43 24 Thermal 7 | . . . . 7 Explosive 24 | . . 1 7 16 Electromagnetic 9 | . . . . 9 Robot Hit Streak 11 | 11 8 10 8 3 Robot Miss Streak 6 | 1 3 4 6 6 Penetration Max . | . . . . . Secondary Targets 5 | . 2 2 1 . Max Gunslinging Chain 1 | . 1 1 1 . Shots Hit Robots 177 | 16 28 82 31 20 Core Hits 106 | 3 16 41 18 28 Critical Kills 2 | . . 1 1 . Critical Parts Destroyed 2 | . . . 2 . Critical Strikes 7 | . . 1 3 3 Destroy 4 | . . 1 3 . Blast 3 | . . . . 3 Melee Attacks . | . . . . . Impact . | . . . . . Slashing . | . . . . . Piercing . | . . . . . Sneak Attacks . | . . . . . Combat Hostiles . | . . . . . Follow-up Attacks . | . . . . . Damage Inflicted 4154 | 231 265 1175 735 1748 Guns 1963 | 231 265 990 403 74 Cannons 407 | . . . . 407 Explosions 1779 | . . 185 332 1262 Melee . | . . . . . Ramming 5 | . . . . 5 Kinetic 2196 | 231 265 990 403 307 Thermal 100 | . . . . 100 Explosive 1779 | . . 185 332 1262 Electromagnetic 74 | . . . . 74 Impact . | . . . . . Slashing . | . . . . . Piercing . | . . . . . Highest Corruption 14 | . . . 14 . Average Corruption 13 | . . . 13 . Corruption Purged . | . . . . . Corruption Blocked . | . . . . . Effects 30 | . . . 30 . Message Errors 6 | . . . 6 . Matter Fused 11 | . . . 11 . Heat Flow Errors 3 | . . . 3 . Energy Discharges 3 | . . . 3 . Parts Fused 1 | . . . 1 . Data Loss (minor) 4 | . . . 4 . Data Loss (major) 2 | . . . 2 . Overload Shots . | . . . . . Overflow Damage 209 | . . 87 . 122 Projectiles . | . . . . . Explosions 209 | . . 87 . 122 Melee . | . . . . . Knockbacks . | . . . . . Impact . | . . . . . Kinetic . | . . . . . Secondary . | . . . . . Self-Inflicted Damage 465 | . . 134 59 272 Shots 10 | . . 2 3 5 Rammed . | . . . . . Targets Rammed 4 | . . . . 4 Kicked 4 | . . . . 4 Crushed . | . . . . . Highest Temperature 272 | . 21 27 272 198 Average Temperature 61 | . 9 9 79 62 Received Heat Transfer 1373 | 78 87 168 131 909 Effects 1 | . . . 1 . Energy Bleed 1 | . . . 1 . Siege Activations . | . . . . . Robots Corrupted . | . . . . . Combat Hostiles . | . . . . . Parts Fried . | . . . . . Impact Corruptions . | . . . . . Robots Melted . | . . . . . Combat Hostiles . | . . . . . Parts Melted 1 | . . . . 1 Heat Transferred 148 | . . . . 148 Parts Sabotaged . | . . . . . Parts Stolen . | . . . . . Parts Stripped . | . . . . . Power Chain Reactions . | . . . . . Missiles Intercepted . | . . . . . Alert | -11 -10 -9 -9 -8 ------- Run | Jun Mat Mat Min Mat Peak Influence 533 | 25 126 409 411 533 Initial 132 | . 16 33 132 23 Average 206 | 12 57 220 248 315 Maximum Alert Level 2 | . . 2 2 2 Low Security (%) 45 | 100 100 44 7 27 Level 1 46 | . . 54 82 44 Level 2 8 | . . 1 10 27 Level 3 . | . . . . . Level 4 . | . . . . . Level 5 . | . . . . . High Security . | . . . . . Max Security . | . . . . . Squads Dispatched 5 | . . 2 . 3 Investigation . | . . . . . Extermination . | . . . . . Reinforcement 5 | . . 2 . 3 Assault . | . . . . . Garrison . | . . . . . Intercept . | . . . . . Searches Triggered . | . . . . . Construction Impeded 1 | . . . . 1 Haulers Reinforced . | . . . . . Active Scanning Responses . | . . . . . Cargo Convoy Interrupts . | . . . . . Stealth | -11 -10 -9 -9 -8 --------- Run | Jun Mat Mat Min Mat Distress Signals 6 | . 1 3 . 2 Communications Jammed . | . . . . . Distress Signals . | . . . . . Times Spotted 88 | 1 10 29 23 25 Peak Tracking Total 20 | 1 5 6 20 7 Tactical Retreats 1 | . . . 1 . Traps | -11 -10 -9 -9 -8 ------- Run | Jun Mat Mat Min Mat Traps Triggered 1 | . . 1 . . Indirectly . | . . . . . Trap Hack Attempts . | . . . . . Triggered . | . . . . . Disarmed . | . . . . . Reprogrammed . | . . . . . Reused . | . . . . . Traps Extracted . | . . . . . Installed . | . . . . . Triggered . | . . . . . Machines | -11 -10 -9 -9 -8 ---------- Run | Jun Mat Mat Min Mat Machines Disabled 8 | . . 5 . 3 Max in Single Turn 3 | . . 2 . 3 Machines Repaired . | . . . . . Machines Sabotaged . | . . . . . Overloaded Fab Kills . | . . . . . Hacking | -11 -10 -9 -9 -8 --------- Run | Jun Mat Mat Min Mat Machines Accessed 7 | . 1 5 . 1 Terminals 4 | . . 3 . 1 Fabricators . | . . . . . Repair Stations . | . . . . . Recycling Units 2 | . 1 1 . . Scanalyzers 1 | . . 1 . . Garrison Access . | . . . . . Total Hacks 18 | . 1 14 . 3 Successful 14 | . 1 11 . 2 Failed 4 | . . 3 . 1 Catastrophic . | . . . . . Database Lockouts . | . . . . . Manual . | . . . . . Terminals 11 | . . 8 . 3 Fabricators . | . . . . . Repair Stations . | . . . . . Recycling Units 4 | . 1 3 . . Scanalyzers 3 | . . 3 . . Garrison Access . | . . . . . Terminal Hacks 7 | . . 5 . 2 Record 5 | . . 3 . 2 Alert Level 1 | . . 1 . . Locate Traps 1 | . . 1 . . Fabricator Hacks . | . . . . . Repair Station Hacks . | . . . . . Recycling Unit Hacks 4 | . 1 3 . . Report Inventory 2 | . 1 1 . . Retrieve Matter 1 | . . 1 . . Retrieve Components 1 | . . 1 . . Scanalyzer 3 | . . 3 . . Insert Component 3 | . . 3 . . Garrison Access Hacks . | . . . . . Unauthorized Hacks . | . . . . . Terminals . | . . . . . Fabricators . | . . . . . Repair Stations . | . . . . . Recycling Units . | . . . . . Scanalyzers . | . . . . . Garrison Access . | . . . . . Data Cores Recovered . | . . . . . Used . | . . . . . Hacking Detections 3 | . . 2 . 1 Full Trace Events 1 | . . 1 . . Feedback Events . | . . . . . Feedback Blocked . | . . . . . Robot Schematics Acquired . | . . . . . Robots Built . | . . . . . Authchips . | . . . . . Time . | . . . . . Total Robot Build Rating . | . . . . . Part Schematics Acquired . | . . . . . Parts Built . | . . . . . Authchips . | . . . . . Time . | . . . . . Total Part Build Rating . | . . . . . Parts Repaired . | . . . . . Time . | . . . . . Parts Recycled . | . . . . . Recycled Matter . | . . . . . Retrieved Matter 125 | . . 125 . . Retrieved Components 10 | . . 10 . . Parts Scanalyzed . | . . . . . Part Schematics Acquired . | . . . . . Parts Damaged . | . . . . . Bothacking | -11 -10 -9 -9 -8 ------------ Run | Jun Mat Mat Min Mat Used RIF Installer . | . . . . . Robots Hacked . | . . . . . Non-combat . | . . . . . Combat . | . . . . . Robot Hacks Applied . | . . . . . Relay Couplers Released . | . . . . . Fabnet Peak Effective % . | . . . . . Robots Rewired . | . . . . . Allies Hacked . | . . . . . Hacks Repelled . | . . . . . Allies | -11 -10 -9 -9 -8 -------- Run | Jun Mat Mat Min Mat Total Allies . | . . . . . Largest Group . | . . . . . Highest-Rated Group . | . . . . . Highest-Rated Ally . | . . . . . Total Orders . | . . . . . Ally Attacks . | . . . . . Total Damage . | . . . . . Kills . | . . . . . Allies Corrupted . | . . . . . Allies Melted . | . . . . . Intel | -11 -10 -9 -9 -8 ------- Run | Jun Mat Mat Min Mat Robot Analysis Total . | . . . . . Derelict Logs Recovered 1 | . . . 1 . Drone Launches . | . . . . . Drone Recoveries . | . . . . . Exploration | -11 -10 -9 -9 -8 ------------- Run | Jun Mat Mat Min Mat Turns Passed 3717 | 211 633 1291 853 729 Spaces Moved 1973 | 140 318 752 402 361 Core 40 | 17 . 15 . 8 Treads . | . . . . . Legs 1933 | 123 318 737 402 353 Wheels . | . . . . . Hover . | . . . . . Flight . | . . . . . Fastest Speed 50 | 50 120 120 126 126 Average Speed 145 | 111 165 140 127 169 Slowest Speed 600 | 120 190 450 130 600 Overloaded Moves . | . . . . . Propulsion Burnouts . | . . . . . Robots Hopped . | . . . . . Cave-ins Triggered 1 | . . . 1 . Exploration Rate (%) 39 | 9 37 50 82 20 Regions Visited 4 Branch Regions 1 Pre-discovered Areas 1 | . . . 1 . Known Exits Taken . | . . . . . Unknown Exits Taken 4 | 1 1 1 1 . Scrap Searched . | . . . . . Spaces Dug . | . . . . . Terrain Destroyed 396 | . . 41 63 292 Melee . | . . . . . Projectile 16 | . . . . 16 AOE 380 | . . 41 63 276 Terrain Rammed . | . . . . . Walls Destroyed . | . . . . . Machines Disabled . | . . . . . Actions | -11 -10 -9 -9 -8 --------- Run | Jun Mat Mat Min Mat Total 2580 | 174 389 885 700 432 Wait 316 | 11 26 15 264 . Move 1969 | 139 317 751 401 361 Hop . | . . . . . Pick Up 35 | . 6 14 2 13 Fast Attach 15 | 5 2 3 . 5 Attach 15 | . . 3 4 8 Detach 5 | . . 1 . 4 Swap 25 | 1 5 15 3 1 Drop 36 | . 6 15 1 14 Fire 160 | 18 27 68 25 22 Melee . | . . . . . Ram . | . . . . . Kick 4 | . . . . 4 Crush . | . . . . . Escape Stasis . | . . . . . Rewire . | . . . . . Trap . | . . . . . Miscellaneous . | . . . . . Route ------- -11/Junkyard -10/Materials (discovered 2 exits: *Mat / [*Min]) -9/Materials (discovered 3 exits: *Mat / [*Min] / [*Sto]) -9/Mines (discovered 2 exits: *Mat x2) -8/Materials History --------- Turn | Location | Event 2 | -11/Junkyard | Met Revision 17 66 | -11/Junkyard | Discovered new exit (range 8) 212 | -11/Junkyard | Entered Materials 312 | -10/Materials | Build established: Mutant 337 | -10/Materials | Discovered new exit (range 8) 678 | -10/Materials | Discovered new exit (range 15) 845 | -10/Materials | Entered another Materials area 845 | -9/Materials | Evolved 2 slots: Propulsion x1, Utility x1 846 | -9/Materials | Discovered new exit (range 14) 1794 | -9/Materials | Discovered new exit (range 15) 2082 | -9/Materials | Discovered new exit (range 13) 2136 | -9/Materials | Entered Mines 2193 | -9/Mines | Crushed by falling debris 2224 | -9/Mines | Lost 3 parts (1u2w) 2232 | -9/Mines | Assembled infested the area 2249 | -9/Mines | System corruption reached 10% 2305 | -9/Mines | Learned location of Storage (-9) 2384 | -9/Mines | Core integrity fell below 50% 2970 | -9/Mines | Discovered new exit (range 11) 2979 | -9/Mines | Discovered new exit (range 8) 2989 | -9/Mines | Entered Materials 2989 | -8/Materials | Evolved 2 slots: Utility x1, Weapon x1 3311 | -8/Materials | Build established: Gunner 3621 | -8/Materials | Core integrity fell below 50% 3683 | -8/Materials | Lost 12 parts (3p4n1u4w) 3701 | -8/Materials | Core integrity fell below 20% 3718 | -8/Materials | Destroyed by G-47 Trooper with Particle Gun Last Messages --------------- Med. Matter Pod destroyed. The unstable cave ceiling collapses. Critical hit (Burn: +37). Acquired 12 matter. Lgt. Ion Engine destroyed. Critical hit (Burn: +37). Lgt. Nuclear Core destroyed. Acquired System Shield. Kicked G-47 Trooper out of the way. Kicked G-47 Trooper. Kicked G-47 Trooper out of the way. Critical hit (Burn: +37). The unstable cave ceiling collapses. Coolant Injector destroyed. The unstable cave ceiling collapses. Acquired 42 matter. The unstable cave ceiling collapses. Critical hit (Burn: +37). The unstable cave ceiling collapses. Acquired 37 matter. Map ----- +----------------------------------------------------+ | | | | | | | | | | | | | | | | | | | | | | | | | | | | | | | | | | | | | | | | | | | ???????????????????????#### # ## # ####??????????? | | ??????????????????????### ######????????? | | ??????????????????????# ## # ######???? | | ?????????????????###### #=# # ### #???? | | ???????????????# =@/ # ##### | | ?????????????????####### ** * g g g ! | | ??????????????????????# # # = gg# ## #### | | ??????????????????????## # ## # ##??? | | ??????????????????????## # # #####???? | | ???????????????????????## #### # # #???????? | | ????????????????????????# #??## #### ## #???????? | | ????????????????????????# #????##? # #???????? | | ????????????????????????# #??????# !# #???????? | | ????????????????????????? ???????# ! # #???????? | | ????????????????????????? ???????# + ???????? | | ????????????????????????? ???????# """ # ???????? | | ????????????????????????? ???????# """ # ???????? | | ?????????????????????????w???????# """ # ???????? | | ????????????????????????? ???????#????## ???????? | | ????????????????????????? ?????????????? ???????? | | ???????????????????????????????????????? ???????? | | ?????????????????????????????????????????????????? | | ?????????????????????????????????????????????????? | | ?????????????????????????????????????????????????? | | ?????????????????????????????????????????????????? | | ?????????????????????????????????????????????????? | | ?????????????????????????????????????????????????? | | ?????????????????????????????????????????????????? | | ?????????????????????????????????????????????????? | +----------------------------------------------------+ Best States ------------- Heat Dissipation 38 Coolant Potential 130 Energy Generation 14 Energy Capacity 265 Matter Stores 300 Matter Capacity 400 Sight Range 16 Terrain Scan Density 10 Power Shielding 33 Evasion (%) 55 Targeting Accuracy 6 Item Schematics ----------------- None Robot Schematics ------------------ None Fabricated ------------ Nothing Alien Tech Used ----------------- None Achievements -------------- Hunted I Survived The Infestation Loot Pinata Oops Remodeling System Compromised Unlikely Earthworm Challenges ------------ None Game ------ Seed IonicGatlingBlade Manual? 0 Play Time 01:20:50 Cumulative 3.9 hours Start 2023.08.03 @ 10:45:35 End 2023.08.04 @ 11:52:26 Sessions 5 Manual Loads 0 Difficulty Rogue Special Mode None Game No. 3 Rogue 2 Adventurer 1 Explorer 0 Win Type - Total 0 Types 0/0/0/0/0/0/0/0/0 Lore% 1 Gallery% 4 Achievement% 5 Wizard Run 0 Options --------- ASCII 0 Keyboard 1 Movement Vi Keybinds 0 Fullscreen 2 Font 20/SmallcapsGlow Map View 66x50 Tactical HUD 0 Map Filters NONE Filters NONE Steam 1 RUN: 844a9a07-fb4f-4061-9254-696532641298